bitfinex/quotes_SOLUSD_20250609
["timestamp","ask_amount","ask_price","bid_price","bid_amount"]
[1749480784840,6.48354046,154.24,154.2,24.7025271]
[1749480785148,34.64746043,154.25,154.2,24.7025271]
[1749480785455,8.33333333,154.25,154.23,24.7025271]
[1749480786021,8.33333333,154.25,154.22,24.7025271]
[1749480786524,33.03586043,154.25,154.22,0.28432314]
[1749480786736,24.7025271,154.23,154.18,26.0]
[1749480786919,24.7025271,154.23,154.18,50.7025271]
[1749480787113,24.7025271,154.23,154.19,24.98685024]
[1749480787345,31.1860988,154.24,154.2,24.7025271]
[1749480787651,31.1860988,154.24,154.19,24.84468867]
[1749480789828,31.1860988,154.24,154.19,6.62758586]
[1749480790025,31.1860988,154.24,154.19,31.33011296]
[1749480791347,21.62311695,154.24,154.19,15.42386839]
[1749480791520,6.4835717,154.24,154.2,15.13954525]
[1749480791843,29.95599857,154.25,154.2,15.13954525]
[1749480792245,15.13954525,154.24,154.2,15.13954525]
[1749480792426,15.13954525,154.22,154.19,0.14216157]
[1749480792632,15.13954525,154.22,154.19,0.28432314]
[1749480792834,15.13954525,154.23,154.19,15.42386839]
[1749480793345,21.62310617,154.24,154.19,21.90935187]
[1749480793533,8.33333333,154.25,154.23,15.13954525]
[1749480793739,8.33333333,154.25,154.24,15.42386839]
[1749480794822,8.33333333,154.25,154.21,6.3865]
[1749480795127,15.13954525,154.22,154.18,15.13954525]
[1749480795341,31.16070498,154.23,154.18,31.16241999]
[1749480795521,31.16070498,154.23,154.19,0.28432314]
[1749480795949,24.676588,154.24,154.19,24.96091114]
[1749480796241,8.33333333,154.25,154.21,24.96091114]
[1749480796242,33.00992133,154.25,154.21,24.96091114]
[1749480796552,24.676588,154.24,154.2,24.676588]
[1749480797131,31.16010245,154.24,154.19,31.44630239]
[1749480797524,24.676588,154.23,154.19,6.76971439]
[1749480797839,24.676588,154.23,154.19,31.44630239]
[1749480798041,31.16010245,154.24,154.19,31.44630239]
[1749480798619,31.16010245,154.24,154.19,24.96091114]
[1749480798849,31.16010245,154.24,154.19,31.44631209]
[1749480799028,24.676588,154.24,154.19,31.44631209]
[1749480799548,33.00992133,154.25,154.21,24.96091114]
[1749480799854,8.33333333,154.25,154.21,24.96091114]
[1749480800227,8.33333333,154.25,154.24,24.676588]
[1749480800537,8.33333333,154.25,154.24,24.96091114]
[1749480800735,8.33333333,154.25,154.24,31.44431362]
[1749480801047,8.33333333,154.25,154.24,50.09396248]
[1749480802149,8.33333333,154.25,154.24,31.44431362]
[1749480802529,8.33333333,154.25,154.24,50.09396248]
[1749480803236,8.33333333,154.25,154.23,50.676588]
[1749480804555,8.33333333,154.25,154.24,24.96091114]
[1749480804761,8.33333333,154.25,154.24,31.44431362]
[1749480804939,8.33333333,154.25,154.24,50.09396248]
[1749480806455,8.05613073,154.36,154.28,44.64964886]
[1749480806770,8.05613073,154.36,154.32,24.676588]
[1749480806968,8.05597445,154.36,154.33,24.676588]
[1749480807274,8.05597445,154.36,154.3,0.28432314]
[1749480807275,24.676588,154.35,154.3,0.28432314]
[1749480807481,24.676588,154.34,154.3,24.96091114]
[1749480807654,24.676588,154.34,154.29,24.676588]
[1749480807848,24.676588,154.33,154.28,24.96091114]
[1749480808049,24.676588,154.31,154.26,50.676588]
[1749480808248,24.676588,154.3,154.24,6.48325333]
[1749480808566,24.676588,154.3,154.25,24.676588]
[1749480808738,24.676588,154.29,154.24,24.96091114]
[1749480808938,24.676588,154.29,154.25,24.676588]
[1749480809256,24.676588,154.29,154.24,24.676588]
[1749480809460,24.676588,154.28,154.23,24.676588]
[1749480809640,24.676588,154.28,154.24,24.676588]
[1749480810779,6.48085678,154.31,154.26,24.676588]
[1749480810944,31.15744478,154.31,154.27,24.676588]
[1749480811274,24.676588,154.31,154.27,24.676588]
[1749480811767,24.676588,154.31,154.27,0.28432314]
[1749480811970,24.676588,154.28,154.2,24.676588]
[1749480812262,24.676588,154.26,154.21,24.96091114]
[1749480812467,26.0,154.3,154.21,24.96091114]
[1749480812668,24.676588,154.26,154.22,24.676588]
[1749480813670,24.676588,154.27,154.23,0.28432314]
[1749480814062,24.676588,154.27,154.23,24.96091114]
[1749480814955,31.15873862,154.27,154.23,24.96091114]
[1749480815156,24.676588,154.27,154.23,31.44468541]
[1749480815583,24.676588,154.27,154.23,24.96091114]
[1749480815957,6.48184381,154.28,154.23,31.44470634]
[1749480816156,24.676588,154.27,154.23,31.44470634]
[1749480816588,31.15843181,154.28,154.24,24.676588]
[1749480816783,4.79403439,154.31,154.24,24.676588]
[1749480816784,6.48104464,154.3,154.24,24.676588]
[1749480816999,24.676588,154.3,154.25,31.15953807]
[1749480817290,6.48060703,154.31,154.25,31.15953807]
[1749480817457,24.676588,154.29,154.25,0.28432314]
[1749480817657,6.48060703,154.31,154.24,0.28432314]
[1749480817658,24.676588,154.28,154.24,0.28432314]
[1749480818064,24.676588,154.27,154.24,0.28432314]
[1749480818394,24.676588,154.25,154.22,26.0]
[1749480818570,24.676588,154.27,154.22,57.16079758]
[1749480818884,31.15885743,154.27,154.22,57.16079758]
[1749480819082,24.676588,154.28,154.23,24.676588]
[1749480819879,20.99518791,154.31,154.22,26.0]
[1749480819880,24.676588,154.26,154.22,26.0]
[1749480820279,24.676588,154.26,154.22,50.676588]
[1749480821071,31.15939171,154.26,154.22,50.676588]
[1749480822972,31.15939171,154.26,154.22,26.0]
[1749480823887,24.676588,154.25,154.21,65.70091114]
[1749480824387,24.676588,154.27,154.22,24.96091114]
[1749480824787,29.47062239,154.27,154.22,24.96091114]
[1749480825081,24.676588,154.27,154.22,24.96091114]
[1749480825287,24.676588,154.27,154.23,24.676588]
[1749480825671,24.676588,154.26,154.22,24.96091114]
[1749480826164,35.95304742,154.27,154.23,24.676588]
[1749480826489,6.48242503,154.27,154.23,24.676588]
[1749480826662,11.27645942,154.27,154.23,24.676588]
[1749480827288,11.27645942,154.27,154.23,15.13242405]
[1749480827489,26.40888347,154.27,154.23,15.13242405]
[1749480827691,21.61484908,154.27,154.23,15.13242405]
[1749480827865,26.40888347,154.27,154.23,15.13242405]
[1749480828066,21.61484908,154.27,154.22,15.41674719]
[1749480828371,26.40888347,154.27,154.22,15.41674719]
[1749480828571,21.61484908,154.27,154.22,15.41674719]
[1749480828771,26.40888347,154.27,154.22,15.41674719]
[1749480829071,21.61484908,154.27,154.22,15.41674719]
[1749480829274,26.40888347,154.27,154.22,15.41674719]
[1749480829590,21.61484908,154.27,154.22,21.90089946]
[1749480829779,26.40888347,154.27,154.22,15.41674719]
[1749480830085,15.13242405,154.26,154.22,0.28432314]
[1749480830285,15.13242405,154.25,154.22,0.28432314]
[1749480830505,19.92645844,154.26,154.22,0.28432314]
[1749480830788,4.79403439,154.26,154.22,15.41674719]
[1749480830995,15.13242405,154.26,154.22,15.41674719]
[1749480831188,19.92645844,154.26,154.22,0.28432314]
[1749480831381,26.40927236,154.26,154.22,0.28432314]
[1749480831581,21.61523797,154.26,154.22,15.41674719]
[1749480831888,15.13242405,154.25,154.21,40.74]
[1749480832192,15.13242405,154.24,154.21,40.74]
[1749480833191,4.79403439,154.25,154.21,40.74]
[1749480833490,21.61599383,154.24,154.21,40.74]
[1749480833787,15.13242405,154.23,154.21,40.74]
[1749480834280,15.13242405,154.23,154.2,0.28432314]
[1749480835193,21.61638621,154.23,154.2,0.28432314]
[1749480835499,26.4104206,154.23,154.19,11.04]
[1749480835682,21.61638621,154.23,154.19,11.04]
[1749480835878,15.13242405,154.22,154.19,0.28432314]
[1749480836078,15.13242405,154.22,154.18,40.62]
[1749480836386,15.13242405,154.22,154.18,55.75242405]
[1749480836868,15.13242405,154.22,154.18,15.13242405]
[1749480837073,21.61685144,154.22,154.18,15.13242405]
[1749480837269,15.13242405,154.2,154.17,0.28432314]
[1749480837475,4.79403439,154.21,154.17,0.28432314]
[1749480837476,15.13242405,154.21,154.17,0.28432314]
[1749480837674,26.41088583,154.22,154.17,15.41674719]
[1749480837895,21.61685144,154.22,154.17,15.41674719]
[1749480838887,6.48442739,154.22,154.17,21.90279862]
[1749480839085,21.61685144,154.22,154.17,21.90279862]
[1749480839784,15.13242405,154.21,154.17,21.90279862]
[1749480840380,21.61715019,154.21,154.17,0.28432314]
[1749480840975,15.13242405,154.2,154.16,26.0]
[1749480841179,15.13242405,154.2,154.16,41.13242405]
[1749480841402,15.13242405,154.2,154.16,26.0]
[1749480841780,15.13242405,154.2,154.16,47.6191805]
[1749480842175,21.61715019,154.21,154.16,47.6191805]
[1749480842393,15.13242405,154.19,154.16,26.0]
[1749480842678,15.13242405,154.18,154.15,40.88432314]
[1749480842877,15.13242405,154.19,154.15,62.50379031]
[1749480843397,15.13242405,154.2,154.16,0.28432314]
[1749480843580,15.13242405,154.21,154.17,15.13242405]
[1749480844391,15.13242405,154.21,154.17,21.61865107]
[1749480844590,15.13242405,154.22,154.18,15.41674719]
[1749480844779,15.13242405,154.23,154.18,15.41674719]
[1749480844978,15.13242405,154.22,154.18,15.41674719]
[1749480845192,15.13242405,154.22,154.18,0.28432314]
[1749480846176,15.13242405,154.21,154.18,0.28432314]
[1749480846876,6.48440095,154.22,154.18,0.28432314]
[1749480847078,15.13242405,154.21,154.18,0.28432314]
[1749480847401,15.13242405,154.21,154.18,6.77008042]
[1749480847782,15.13242405,154.21,154.18,0.28432314]
[1749480849495,21.61721892,154.21,154.18,0.28432314]
[1749480849888,15.13242405,154.2,154.15,55.73242405]
[1749480850198,15.13242405,154.19,154.16,0.28432314]
[1749480850682,21.61768119,154.2,154.16,0.28432314]
[1749480850884,21.61768119,154.2,154.15,40.6]
[1749480850885,15.13242405,154.18,154.15,40.6]
[1749480851405,15.13242405,154.17,154.12,55.63242405]
[1749480851578,15.13242405,154.17,154.13,0.28432314]
[1749480851777,15.13242405,154.17,154.13,0.14216157]
[1749480851981,15.13242405,154.17,154.14,0.14216157]
[1749480852910,21.61879875,154.17,154.13,0.28432314]
[1749480853311,21.61879875,154.17,154.13,0.14216157]
[1749480853492,21.61879875,154.17,154.13,0.28432314]
[1749480853691,15.13242405,154.17,154.13,21.90470137]
[1749480853901,15.13242405,154.19,154.15,15.41674719]
[1749480854293,15.13242405,154.19,154.15,0.28432314]
[1749480854493,21.61810016,154.19,154.15,0.28432314]
[1749480854805,15.13242405,154.17,154.14,0.28432314]
[1749480854981,15.13242405,154.17,154.12,88.12075236]
[1749480855184,15.13242405,154.16,154.13,0.28432314]
[1749480855383,6.48567611,154.19,154.12,66.5]
[1749480855384,15.13242405,154.15,154.12,66.5]
[1749480856203,15.13242405,154.16,154.12,72.9882363]
[1749480856404,15.13242405,154.17,154.13,15.41674719]
[1749480856606,6.48567611,154.19,154.13,21.90446255]
[1749480856908,15.13242405,154.19,154.14,15.13242405]
[1749480857205,15.13242405,154.18,154.14,15.13242405]
[1749480858401,15.13242405,154.18,154.13,21.90446255]
[1749480858609,21.61836462,154.18,154.13,21.90446255]
[1749480858813,21.61836462,154.18,154.13,6.7720385]
[1749480859009,15.13242405,154.16,154.13,6.7720385]
[1749480859594,15.13242405,154.17,154.13,21.90446255]
[1749480859796,15.13242405,154.19,154.14,15.13242405]
[1749480860707,15.13242405,154.19,154.14,21.61964506]
[1749480861213,15.13242405,154.18,154.14,21.61964506]
[1749480861612,15.13242405,154.17,154.13,21.90463988]
[1749480861917,15.13242405,154.17,154.13,21.90452922]
[1749480862295,14.57967147,154.2,154.14,15.13242405]
[1749480862497,15.13242405,154.19,154.15,0.28432314]
[1749480862819,15.13242405,154.19,154.15,21.90366247]
[1749480863500,1.6532,154.2,154.17,15.13242405]
[1749480863701,19.92645844,154.22,154.15,6.77123842]
[1749480864006,15.13242405,154.21,154.17,0.28432314]
[1749480864199,21.61671337,154.22,154.17,15.41674719]
[1749480864813,21.61671337,154.22,154.17,21.90301045]
[1749480865019,15.13242405,154.21,154.17,21.90301045]
[1749480867590,6.48428932,154.22,154.17,21.90301045]
[1749480867806,6.48428932,154.22,154.18,15.13242405]
[1749480868003,21.61671337,154.22,154.18,15.13242405]
[1749480868295,21.61671337,154.22,154.17,21.90301045]
[1749480869411,21.61671337,154.22,154.17,15.41674719]
[1749480869596,15.13242405,154.21,154.17,15.41674719]
[1749480870119,15.13242405,154.21,154.17,21.9030094]
[1749480871120,21.61709287,154.21,154.17,21.9030094]
[1749480872324,19.92645844,154.21,154.17,21.9030094]
[1749480872619,15.13242405,154.22,154.18,15.13242405]
[1749480872830,15.13242405,154.21,154.17,21.9030094]
[1749480873042,15.13242405,154.21,154.15,18.64964886]
[1749480873043,15.13242405,154.19,154.16,26.0]
[1749480873319,6.48432198,154.22,154.15,0.28432314]
[1749480873320,15.13242405,154.18,154.15,0.28432314]
[1749480873499,15.13242405,154.17,154.13,41.13242405]
[1749480873918,15.13242405,154.16,154.12,62.12062003]
[1749480874222,15.13242405,154.16,154.13,0.28432314]
[1749480874422,15.13242405,154.16,154.11,29.52964886]
[1749480874727,21.61921482,154.16,154.11,26.01242405]
[1749480875100,21.61921482,154.16,154.12,0.28432314]
[1749480875913,21.61921482,154.16,154.12,0.14216157]
[1749480876111,21.61921482,154.16,154.12,0.28432314]
[1749480876836,15.13242405,154.15,154.11,26.01242405]
[1749480877018,15.13242405,154.15,154.11,10.88]
[1749480877205,15.13242405,154.13,154.1,0.14216157]
[1749480877407,15.13242405,154.13,154.1,0.28432314]
[1749480877606,15.13242405,154.13,154.1,0.14216157]
[1749480878130,15.13242405,154.14,154.1,6.77361256]
[1749480878630,21.6200395,154.14,154.1,6.77361256]
[1749480879327,15.13242405,154.13,154.1,0.28432314]
[1749480879515,15.13242405,154.11,154.08,0.14216157]
[1749480879832,15.13242405,154.1,154.07,26.0]
[1749480880202,15.13242405,154.11,154.07,26.0]
[1749480880610,15.13242405,154.11,154.07,47.62295486]
[1749480880806,15.13242405,154.12,154.07,47.62295486]
[1749480881231,15.13242405,154.13,154.08,15.41674719]
[1749480881634,15.13242405,154.12,154.08,15.41674719]
[1749480881940,15.13242405,154.12,154.08,21.90652493]
[1749480882646,15.13242405,154.11,154.08,6.77410088]
[1749480882849,15.13242405,154.11,154.08,0.28432314]
[1749480883010,15.13242405,154.09,154.06,0.14216157]
[1749480883211,15.13242405,154.09,154.05,6.49107]
[1749480883446,15.13242405,154.08,154.04,21.62410664]
[1749480883738,15.13242405,154.08,154.05,0.28432314]
[1749480884129,15.13242405,154.08,154.05,0.14216157]
[1749480884530,15.13242405,154.09,154.05,6.63352018]
[1749480885413,15.13242405,154.09,154.05,0.28432314]
[1749480885612,15.13242405,154.08,154.04,15.13242405]
[1749480886018,15.13242405,154.08,154.04,21.6242305]
[1749480886230,15.13242405,154.07,154.04,0.28432314]
[1749480886440,15.13242405,154.07,154.03,51.87242405]
[1749480886749,6.49017099,154.08,154.04,15.13242405]
[1749480887242,21.62259504,154.08,154.04,15.13242405]
[1749480887547,21.62259504,154.08,154.03,15.13242405]
[1749480889143,21.62259504,154.08,154.04,15.13242405]
[1749480889519,6.49017099,154.08,154.04,15.13242405]
[1749480889818,6.49017099,154.08,154.05,15.13242405]
[1749480890038,61.94622405,154.1,154.06,15.13242405]
[1749480890249,53.30321986,154.1,154.06,15.13242405]
[1749480890419,73.26428616,154.1,154.06,15.13242405]
[1749480890618,68.43564391,154.1,154.06,15.13242405]
[1749480892425,68.41564391,154.1,154.06,15.13242405]
[1749480892626,46.82941986,154.1,154.07,15.13242405]
[1749480892842,6.48941986,154.1,154.07,15.13242405]
[1749480893144,6.48941986,154.1,154.06,15.13242405]
[1749480893734,21.62184391,154.1,154.06,15.13242405]
[1749480894046,63.49295283,154.11,154.07,15.13242405]
[1749480894224,63.49295283,154.11,154.06,15.13242405]
[1749480895223,15.13242405,154.1,154.05,0.28432314]
[1749480895551,15.13242405,154.08,154.03,41.13242405]
[1749480895727,15.13242405,154.09,154.04,15.13242405]
[1749480896537,6.49013499,154.08,154.04,15.13242405]
[1749480897427,21.62255904,154.08,154.03,15.13242405]
[1749480897647,21.62255904,154.08,154.0,26.0]
[1749480897648,22.71547247,154.08,154.0,26.0]
[1749480897852,15.13242405,154.07,154.03,15.13242405]
[1749480898052,21.62255904,154.08,154.03,15.13242405]
[1749480898267,21.62255904,154.08,154.04,15.13242405]
[1749480898851,15.13242405,154.07,154.02,15.13242405]
[1749480899033,15.13242405,154.07,154.03,15.13242405]
[1749480899432,21.62255904,154.08,154.04,15.13242405]
[1749480899756,21.62255904,154.08,154.03,15.13242405]
[1749480900646,37.84789652,154.08,154.02,0.14216157]
[1749480900955,15.13242405,154.06,154.01,15.13242405]
[1749480901157,15.13242405,154.05,153.98,94.19409405]
[1749480901327,15.13242405,154.05,154.01,15.13242405]
[1749480902264,15.13242405,154.05,153.99,0.14216157]
[1749480902265,16.75022405,154.05,153.99,0.14216157]
[1749480902456,6.4918203,154.04,154.01,15.13242405]
[1749480903035,6.4918203,154.04,154.0,15.13242405]
[1749480903243,15.13242405,154.03,153.98,15.13242405]
[1749480903442,15.13242405,154.03,153.97,10.64]
[1749480903443,15.13242405,154.02,153.97,15.13242405]
[1749480903747,55.51242405,154.01,153.97,15.13242405]
[1749480903947,40.38,154.01,153.97,15.13242405]
[1749480904657,40.38,154.01,153.94,6.45912314]
[1749480904658,40.38,154.01,153.98,15.13242405]
[1749480905067,41.13242405,154.04,154.0,15.13242405]
[1749480905361,40.36,154.04,154.02,15.13242405]
[1749480905564,40.36,154.04,154.01,15.13242405]
[1749480905767,40.36,154.04,154.0,15.13242405]
[1749480905938,55.49242405,154.04,153.99,15.13242405]
[1749480906267,55.49242405,154.04,154.0,15.13242405]
[1749480906585,21.62466582,154.03,153.95,6.4953585]
[1749480906736,15.13242405,154.02,153.97,15.13242405]
[1749480907075,21.62466582,154.03,153.98,15.13242405]
[1749480907241,21.62466582,154.03,153.99,15.13242405]
[1749480908163,21.62466582,154.03,153.97,6.49456824]
[1749480908369,21.62466582,154.03,153.99,15.13242405]
[1749480908591,6.49224177,154.03,153.99,15.13242405]
[1749480908770,21.62466582,154.03,153.99,15.13242405]
[1749480909271,1.6178,154.05,154.02,15.13242405]
[1749480909472,40.32,154.06,154.04,15.13242405]
[1749480909683,40.32,154.06,154.03,15.13242405]
[1749480909870,61.9435263,154.06,154.02,15.13242405]
[1749480910071,15.13242405,154.05,153.98,0.28432314]
[1749480910385,6.4918203,154.04,154.01,15.13242405]
[1749480911064,40.32,154.06,154.02,15.13242405]
[1749480912183,46.8110242,154.06,154.02,15.13242405]
[1749480912889,46.81101968,154.06,154.02,15.13242405]
[1749480913275,61.94344373,154.06,154.02,15.13242405]
[1749480913973,40.38,154.07,154.05,15.13242405]
[1749480914387,46.87065303,154.07,154.05,15.13242405]
[1749480914608,46.87065303,154.07,154.04,15.13242405]
[1749480915586,40.38,154.07,154.05,15.13242405]
[1749480915982,46.85028712,154.08,154.05,15.13242405]
[1749480916185,46.85028712,154.08,154.04,15.13242405]
[1749480916593,6.49028712,154.08,154.03,6.49218134]
[1749480916806,40.36,154.08,154.06,15.13242405]
[1749480918280,1.5811,154.09,154.06,15.13242405]
[1749480918493,51.65080752,154.1,154.03,0.28432314]
[1749480918494,40.34,154.1,154.07,15.13242405]
[1749480918799,4.82144765,154.1,154.07,15.13242405]
[1749480918992,46.82892964,154.11,154.07,15.13242405]
[1749480919294,51.65037729,154.11,154.08,15.13242405]
[1749480919594,66.78280134,154.11,154.07,15.13242405]
[1749480919770,4.82144765,154.1,154.07,15.13242405]
[1749480920704,66.78280134,154.11,154.07,15.13242405]
[1749480920904,4.82144765,154.1,154.07,15.13242405]
[1749480921110,4.82144765,154.11,154.09,15.13242405]
[1749480921413,54.18622405,154.13,154.1,15.13242405]
[1749480921414,4.82144765,154.12,154.1,15.13242405]
[1749480921573,6.47524765,154.13,154.09,15.13242405]
[1749480921774,46.83524765,154.13,154.09,15.13242405]
[1749480921973,53.32343955,154.13,154.09,15.13242405]
[1749480923701,68.4558636,154.13,154.09,15.13242405]
[1749480923904,4.82144765,154.12,154.09,15.13242405]
[1749480924212,53.32343955,154.13,154.09,15.13242405]
[1749480924401,53.32343955,154.13,154.1,15.13242405]
[1749480924599,48.5019919,154.13,154.09,15.13242405]
[1749480924799,53.32343955,154.13,154.09,15.13242405]
[1749480925828,46.83524765,154.13,154.11,15.13242405]
[1749480925994,48.50192833,154.13,154.1,15.13242405]
[1749480926187,19.9538717,154.12,154.08,15.13242405]
[1749480926698,4.82144765,154.12,154.08,15.13242405]
[1749480927301,11.3101261,154.12,154.07,0.28432314]
[1749480927488,11.3101261,154.12,154.08,15.13242405]
[1749480927689,11.3101261,154.12,154.09,15.13242405]
[1749480928105,11.3101261,154.12,154.08,15.13242405]
[1749480928304,11.3101261,154.12,154.09,15.13242405]
[1749480928505,4.82144765,154.12,154.09,15.13242405]
[1749480929323,4.82144765,154.12,154.1,15.13242405]
[1749480929504,45.18144765,154.13,154.1,15.13242405]
[1749480930709,51.66960521,154.13,154.1,15.13242405]
[1749480930912,51.66960521,154.13,154.09,15.13242405]
[1749480931707,45.18144765,154.13,154.09,21.62198769]
[1749480931921,45.18144765,154.13,154.1,15.13242405]
[1749480932426,40.36,154.13,154.1,15.13242405]
[1749480932828,40.36,154.13,154.11,15.13242405]
[1749480933119,40.36,154.13,154.12,15.13242405]
[1749480933313,40.36,154.13,154.11,15.13242405]
[1749480933900,40.36,154.13,154.1,6.48922557]
[1749480933901,4.82144765,154.15,154.12,15.13242405]
[1749480934095,1.5131,154.17,154.14,15.13242405]
[1749480934096,12.82107153,154.17,154.14,15.13242405]
[1749480935220,7.99962388,154.17,154.14,15.13242405]
[1749480935824,7.99962388,154.17,154.12,0.28432314]
[1749480936025,7.99962388,154.17,154.13,15.13242405]
[1749480936523,12.82107153,154.17,154.13,15.13242405]
[1749480937425,7.99962388,154.17,154.13,15.13242405]
[1749480937924,12.82107153,154.17,154.13,15.13242405]
[1749480941113,12.82107153,154.17,154.14,15.13242405]
[1749480941314,12.82107153,154.17,154.13,15.13242405]
[1749480942123,12.82107153,154.17,154.11,6.48870136]
[1749480942124,15.13242405,154.15,154.11,15.13242405]
[1749480942517,15.13242405,154.16,154.12,15.13242405]
[1749480943613,21.61946478,154.16,154.12,15.13242405]
[1749480944032,6.48704073,154.16,154.12,15.13242405]
[1749480945436,6.48704073,154.16,154.13,15.13242405]
[1749480948054,6.33454765,154.17,154.14,15.13242405]
[1749480948254,4.82144765,154.17,154.15,15.13242405]
[1749480948424,51.86751287,154.18,154.15,15.13242405]
[1749480948824,51.86751287,154.18,154.14,15.13242405]
[1749480951250,45.38144765,154.18,154.15,15.13242405]
[1749480951449,4.82144765,154.19,154.15,15.13242405]
[1749480951626,11.30701702,154.19,154.15,15.13242405]
[1749480951834,26.43944107,154.19,154.15,15.13242405]
[1749480952540,15.13242405,154.17,154.13,15.13242405]
[1749480952737,15.13242405,154.17,154.11,0.28432314]
[1749480953055,15.13242405,154.17,154.13,15.13242405]
[1749480953356,6.48634624,154.17,154.13,15.13242405]
[1749480953538,6.48634624,154.17,154.14,15.13242405]
[1749480954149,6.48634624,154.17,154.13,15.13242405]
[1749480954836,11.30756588,154.18,154.14,15.13242405]
[1749480955143,11.30756588,154.18,154.15,15.13242405]
[1749480955144,6.48611823,154.18,154.15,15.13242405]
[1749480955353,11.30756588,154.18,154.15,15.13242405]
[1749480956130,11.30756588,154.18,154.14,15.13242405]
[1749480957365,4.82144765,154.17,154.14,15.13242405]
[1749480958061,11.30784543,154.17,154.14,15.13242405]
[1749480958254,6.48639778,154.17,154.14,15.13242405]
[1749480958564,11.30784543,154.17,154.14,15.13242405]
[1749480958762,6.48639778,154.17,154.14,15.13242405]
[1749480958969,11.30784543,154.17,154.13,15.13242405]
[1749480959171,4.82144765,154.16,154.14,15.13242405]
[1749480959348,4.82144765,154.17,154.15,15.13242405]
[1749480959666,4.82144765,154.16,154.14,0.28432314]
[1749480959873,4.82144765,154.19,154.15,15.13242405]
[1749480960068,4.82144765,154.18,154.16,15.13242405]
[1749480960364,4.82144765,154.17,154.16,15.13242405]
[1749480960535,4.82144765,154.19,154.16,15.13242405]
[1749480960734,4.82144765,154.18,154.16,15.13242405]
[1749480960940,4.82144765,154.17,154.16,15.13242405]
[1749480961242,4.82144765,154.19,154.16,15.13242405]
[1749480961437,4.82144765,154.18,154.16,15.13242405]
[1749480961747,4.82144765,154.17,154.16,15.13242405]
[1749480961953,4.82144765,154.19,154.16,15.13242405]
[1749480962149,4.82144765,154.18,154.16,15.13242405]
[1749480962350,4.82144765,154.17,154.16,15.13242405]
[1749480962558,4.82144765,154.18,154.16,15.13242405]
[1749480962756,4.82144765,154.17,154.16,15.13242405]
[1749480962959,4.82144765,154.18,154.16,15.13242405]
[1749480963171,6.48557978,154.19,154.16,15.13242405]
[1749480963172,4.82144765,154.17,154.16,15.13242405]
[1749480963665,4.82144765,154.18,154.16,15.13242405]
[1749480963874,4.82144765,154.17,154.15,15.13242405]
[1749480964066,4.82144765,154.16,154.15,15.13242405]
[1749480964281,4.82144765,154.17,154.15,15.13242405]
[1749480964444,4.82144765,154.16,154.15,15.13242405]
[1749480964769,4.82144765,154.17,154.15,15.13242405]
[1749480965072,4.82144765,154.16,154.15,15.13242405]
[1749480965256,4.82144765,154.17,154.15,15.13242405]
[1749480965461,6.48598452,154.18,154.16,15.13242405]
[1749480965767,4.84770989,154.17,154.16,15.13242405]
[1749480966578,26.02523855,154.17,154.12,15.41674719]
[1749480966744,4.84770989,154.16,154.12,15.41674719]
[1749480966945,4.84770989,154.15,154.12,15.41674719]
[1749480967153,4.84770989,154.14,154.12,15.41674719]
[1749480967355,4.84770989,154.13,154.12,15.41674719]
[1749480967566,21.17752866,154.17,154.12,15.41674719]
[1749480967567,11.33467933,154.16,154.12,15.41674719]
[1749480967760,4.84770989,154.15,154.12,15.41674719]
[1749480967964,4.84770989,154.14,154.12,15.41674719]
[1749480968166,4.84770989,154.13,154.12,15.41674719]
[1749480968475,4.84770989,154.15,154.12,15.41674719]
[1749480968772,4.84770989,154.14,154.12,15.41674719]
[1749480969073,4.84770989,154.13,154.12,15.41674719]
[1749480969374,4.84770989,154.13,154.12,15.13242405]
[1749480969544,4.84770989,154.13,154.11,15.41674719]
[1749480969751,4.84770989,154.12,154.11,15.41674719]
[1749480969960,4.84770989,154.13,154.11,15.41674719]
[1749480970250,4.84770989,154.12,154.11,15.41674719]
[1749480970459,4.84770989,154.14,154.11,15.41674719]
[1749480970658,4.84770989,154.13,154.12,15.13242405]
[1749480971347,4.84770989,154.15,154.12,15.13242405]
[1749480971552,4.84770989,154.14,154.12,15.13242405]
[1749480971776,4.84770989,154.13,154.12,15.13242405]
[1749480971989,4.84770989,154.15,154.12,15.13242405]
[1749480972171,4.84770989,154.14,154.12,15.13242405]
[1749480972358,4.84770989,154.13,154.12,15.13242405]
[1749480972970,4.84770989,154.13,154.11,15.41674719]
[1749480973151,6.48747539,154.15,154.11,15.41674719]
[1749480973353,4.85352903,154.14,154.11,15.41674719]
[1749480973552,4.85352903,154.13,154.12,15.13242405]
[1749480974756,4.85352903,154.13,154.11,0.28432314]
[1749480974968,6.48747539,154.15,154.11,15.41674719]
[1749480975151,4.8548419,154.14,154.11,15.41674719]
[1749480975350,4.8548419,154.13,154.11,15.41674719]
[1749480975552,6.48747539,154.15,154.11,15.41674719]
[1749480975781,4.85563766,154.14,154.11,15.41674719]
[1749480975983,4.85563766,154.13,154.11,15.41674719]
[1749480976189,4.8566098,154.12,154.11,15.41674719]
[1749480978481,4.85836923,154.14,154.11,21.90561877]